bitfinex/quotes_ETHUSD_20241024
["timestamp","ask_amount","ask_price","bid_price","bid_amount"]
[1729754422519,0.8322,2552.9,2552.5,0.27030539]
[1729754423550,3.91698,2553.0,2552.5,4.18800539]
[1729754423754,3.91698,2553.0,2552.5,5.30319867]
[1729754425350,3.91698,2553.0,2552.5,5.30320867]
[1729754425655,3.91698,2553.0,2552.5,1.38549867]
[1729754425814,5.20549033,2553.0,2552.5,1.38549867]
[1729754426159,3.91698,2553.0,2552.5,1.38549867]
[1729754426520,5.20549033,2553.0,2552.5,1.38549867]
[1729754428151,3.91712,2552.9,2552.5,0.27030539]
[1729754429021,5.20549033,2553.0,2552.5,0.27030539]
[1729754430357,9.12255033,2553.0,2552.5,0.27030539]
[1729754430779,3.91698,2553.0,2552.5,0.27030539]
[1729754431062,4.68152,2553.1,2552.6,4.68571]
[1729754431224,5.97003033,2553.1,2552.6,5.70977584]
[1729754431535,5.97003033,2553.1,2552.7,0.27018873]
[1729754436066,9.88696033,2553.1,2552.7,0.27018873]
[1729754437023,3.91696,2553.0,2552.7,0.27018873]
[1729754437270,5.97003033,2553.1,2552.7,0.27018873]
[1729754437433,9.88694033,2553.1,2552.7,0.27018873]
[1729754439368,4.68152,2553.1,2552.7,0.27018873]
[1729754439663,9.12228033,2553.1,2552.7,0.27018873]
[1729754440179,3.91704,2553.0,2552.7,0.27018873]
[1729754441068,3.91726,2552.8,2552.7,0.27018873]
[1729754441259,5.98097033,2552.8,2552.7,0.27018873]
[1729754441576,5.98097033,2552.8,2552.3,0.8283]
[1729754441746,3.91743,2552.7,2552.4,0.31131076]
[1729754442269,4.69248,2552.8,2552.4,0.31131076]
[1729754443267,3.91728,2552.8,2552.4,0.31131076]
[1729754443575,3.91728,2552.8,2552.4,1.33774187]
[1729754443746,3.91718,2552.9,2552.4,6.5440922]
[1729754445271,3.91718,2552.9,2552.4,5.25558187]
[1729754445752,3.91718,2552.9,2552.4,6.5440922]
[1729754446459,3.91718,2552.9,2552.4,5.25558187]
[1729754446657,3.91718,2552.9,2552.5,0.7450745]
[1729754446973,3.91718,2552.9,2552.6,1.13958667]
[1729754450670,3.91734,2552.8,2552.6,1.13958667]
[1729754451274,3.91718,2552.9,2552.6,1.13958667]
[1729754455662,3.91704,2553.0,2552.6,1.13958667]
[1729754456510,5.20540033,2553.1,2552.6,2.16594837]
[1729754456679,9.12230033,2553.1,2552.6,5.05712667]
[1729754456875,3.91698,2553.0,2552.6,5.05714667]
[1729754457689,3.91698,2553.0,2552.6,1.13958667]
[1729754458515,7.83407,2553.0,2552.6,1.13958667]
[1729754459992,3.91712,2552.9,2552.6,1.13958667]
[1729754466398,3.91697,2553.0,2552.6,1.13958667]
[1729754467232,3.91697,2553.0,2552.6,5.05715667]
[1729754467441,3.91682,2553.1,2552.6,6.09132893]
[1729754467733,5.20533033,2553.1,2552.6,6.09132893]
[1729754468910,3.91682,2553.1,2552.6,6.09132893]
[1729754470012,5.20533033,2553.1,2552.6,6.09132893]
[1729754471041,9.12226033,2553.1,2552.6,6.09132893]
[1729754471535,9.12223033,2553.1,2552.6,6.09132893]
[1729754472541,3.91697,2553.0,2552.6,6.09132893]
[1729754473711,3.91697,2553.0,2552.6,2.17375893]
[1729754475330,5.20548033,2553.0,2552.6,1.13958667]
[1729754475835,3.91697,2553.0,2552.6,1.13958667]
[1729754480654,3.91713,2552.9,2552.6,1.13958667]
[1729754494558,3.91712,2552.9,2552.6,1.13958667]
[1729754498458,3.91686,2553.1,2552.6,1.13958667]
[1729754498644,2.06371033,2553.2,2552.6,1.13958667]
[1729754498854,3.91709,2553.0,2552.6,1.13958667]
[1729754499153,3.91691,2553.1,2552.6,6.08350137]
[1729754499768,3.917,2553.0,2552.6,2.16594137]
[1729754502362,3.917,2553.0,2552.6,1.13958667]
[1729754502560,3.917,2553.0,2552.6,5.05713667]
[1729754503062,3.917,2553.0,2552.6,1.13958667]
[1729754503737,3.917,2553.0,2552.6,5.05715667]
[1729754503938,3.917,2553.0,2552.6,1.13958667]
[1729754505662,7.83407,2553.0,2552.6,1.13958667]
[1729754506267,3.91712,2552.9,2552.6,1.13958667]
[1729754506561,3.91702,2553.0,2552.6,1.13958667]
[1729754506952,7.83411,2553.0,2552.6,1.13958667]
[1729754507858,3.91713,2552.9,2552.6,1.13958667]
[1729754513870,5.20533033,2553.1,2552.6,1.13958667]
[1729754514170,3.91697,2553.0,2552.6,5.05713667]
[1729754514777,3.91713,2552.9,2552.6,1.13958667]
[1729754518761,7.83433,2552.9,2552.6,1.13958667]
[1729754518951,5.20593033,2552.7,2552.6,0.31128667]
[1729754519160,3.91802,2552.4,2552.2,0.7665]
[1729754519372,3.91766,2552.6,2552.2,0.7665]
[1729754519579,3.91775,2552.5,2552.2,0.7665]
[1729754519778,3.91692539,2552.5,2552.2,0.7665]
[1729754520795,3.91788,2552.4,2552.2,0.7665]
[1729754520983,3.91788,2552.4,2552.0,2.60501033]
[1729754521188,3.91788,2552.4,2552.0,3.55736436]
[1729754521353,3.91788,2552.4,2552.0,7.47584436]
[1729754521553,7.83588,2552.4,2552.0,2.26885403]
[1729754521760,5.20672033,2552.2,2552.0,0.7665]
[1729754521982,7.8365,2552.2,2551.8,4.68521]
[1729754522180,7.8365,2552.2,2551.8,0.7665]
[1729754522469,3.91821,2552.2,2551.8,0.7665]
[1729754522668,3.91821,2552.2,2551.8,4.68529]
[1729754523096,3.91834,2552.1,2551.8,0.7665]
[1729754524164,3.91821,2552.2,2551.8,4.68527]
[1729754524508,3.91821,2552.2,2551.8,5.97378033]
[1729754524793,3.91821,2552.2,2551.8,0.7665]
[1729754525100,7.8365,2552.2,2551.8,4.6853]
[1729754525392,3.9184,2552.1,2551.8,0.7665]
[1729754527568,6.55790136,2552.1,2551.6,0.7665]
[1729754527896,3.91849,2552.0,2551.6,4.68553]
[1729754530893,4.69808,2551.4,2551.0,0.7853]
[1729754531263,4.69808,2551.4,2551.0,5.99376033]
[1729754531264,0.7786,2551.4,2551.0,5.99376033]
[1729754531691,0.7786,2551.4,2551.0,4.70525]
[1729754532089,0.7786,2551.4,2551.0,5.99376033]
[1729754532908,0.7786,2551.4,2551.1,3.91986]
[1729754533104,0.7786,2551.8,2551.4,3.9194]
[1729754533399,3.91867,2551.9,2551.5,3.91919]
[1729754533898,3.91867,2551.9,2551.4,5.20783033]
[1729754534208,3.91884,2551.8,2551.4,3.91932]
[1729754534370,3.91884,2551.8,2551.4,4.91843048]
[1729754535207,3.91884,2551.8,2551.4,6.20694081]
[1729754536106,3.91884,2551.8,2551.4,4.91843048]
[1729754537871,4.69714,2552.0,2551.4,6.20690081]
[1729754538195,3.9184,2552.1,2551.7,0.7853]
[1729754538366,3.91851,2552.0,2551.7,0.7853]
[1729754539165,1.28851033,2552.1,2551.7,0.7853]
[1729754539366,4.6968,2552.2,2551.7,2.67308936]
[1729754539567,3.9182,2552.2,2551.8,5.20729033]
[1729754541079,3.9182,2552.2,2551.8,1.28851033]
[1729754541311,3.9182,2552.2,2551.8,5.20730033]
[1729754541469,3.9182,2552.2,2551.9,0.65918794]
[1729754541670,9.90315033,2552.4,2551.9,0.65918794]
[1729754541909,1.28851033,2552.6,2552.0,2.07381033]
[1729754542116,3.91774,2552.5,2552.1,5.20680033]
[1729754542270,3.91774,2552.5,2552.1,3.91829]
[1729754542695,5.98470033,2552.6,2552.1,5.20674033]
[1729754542888,3.91774,2552.5,2552.2,0.29201069]
[1729754543411,5.20625033,2552.5,2552.2,0.29201069]
[1729754543775,5.20625033,2552.5,2552.0,4.70378]
[1729754543975,3.91794,2552.4,2552.3,0.2919699]
[1729754544295,5.20645033,2552.4,2552.3,0.2919699]
[1729754544487,5.20645033,2552.4,2552.0,1.77638303]
[1729754544687,5.20645033,2552.4,2552.3,0.2919699]
[1729754545016,3.91794,2552.4,2552.0,1.77638303]
[1729754545308,3.91825,2552.2,2551.8,0.7853]
[1729754545509,3.91825,2552.2,2551.8,5.99254033]
[1729754545713,5.20645033,2552.4,2551.8,5.99254033]
[1729754545888,3.91805,2552.3,2551.9,0.29213309]
[1729754546211,3.91805,2552.3,2551.9,1.58064342]
[1729754546915,3.91805,2552.3,2551.9,0.29213309]
[1729754547099,3.91805,2552.3,2551.9,1.58064342]
[1729754547300,3.91805,2552.3,2551.9,2.66092267]
[1729754547690,3.91805,2552.3,2551.9,1.37241234]
[1729754548090,3.91805,2552.3,2551.9,2.66092267]
[1729754548544,3.91805,2552.3,2551.9,1.37241234]
[1729754549012,3.91794,2552.4,2552.1,0.7853]
[1729754549390,3.91794,2552.4,2552.2,0.28181402]
[1729754550811,3.91774,2552.5,2552.2,0.28181402]
[1729754551609,5.98475033,2552.6,2552.2,0.28181402]
[1729754552996,3.91787,2552.5,2552.2,0.28181402]
[1729754553518,3.91788,2552.4,2552.2,0.28181402]
[1729754556813,7.83587,2552.4,2552.2,0.28181402]
[1729754557017,3.91788,2552.4,2552.2,0.28181402]
[1729754558618,4.69628,2552.6,2552.2,0.28181402]
[1729754560310,8.61396,2552.6,2552.2,0.28181402]
[1729754560708,4.69628,2552.6,2552.2,0.28181402]
[1729754560907,8.614,2552.6,2552.2,0.28181402]
[1729754561128,4.69628,2552.6,2552.2,0.28181402]
[1729754561441,8.61399,2552.6,2552.2,0.28181402]
[1729754561741,3.91773,2552.5,2552.2,0.28181402]
[1729754561939,3.91749,2552.7,2552.2,6.50763278]
[1729754562548,3.91759,2552.6,2552.2,5.21912245]
[1729754562703,3.91749,2552.7,2552.3,3.91801]
[1729754562909,3.91749,2552.7,2552.4,1.03313244]
[1729754563606,5.20600033,2552.7,2552.4,1.03313244]
[1729754563806,3.91749,2552.7,2552.4,1.03313244]
[1729754564640,7.83502,2552.7,2552.4,1.03313244]
[1729754565237,9.12353033,2552.7,2552.4,1.03313244]
[1729754565614,3.91758,2552.6,2552.4,1.03313244]
[1729754565812,3.91758,2552.6,2552.4,0.28173244]
[1729754566304,5.20600033,2552.7,2552.4,0.28173244]
[1729754566631,9.12352033,2552.7,2552.4,0.28173244]
[1729754567429,3.91749,2552.7,2552.4,0.28173244]
[1729754567744,5.20600033,2552.7,2552.4,0.28173244]
[1729754568044,3.91724,2552.9,2552.4,1.28076911]
[1729754568208,3.91724,2552.9,2552.5,0.7514]
[1729754568209,3.9173,2552.8,2552.5,0.7514]
[1729754568620,3.9173,2552.8,2552.6,0.28140925]
[1729754568823,3.91742,2552.7,2552.6,0.28140925]
[1729754575453,0.7684,2553.0,2552.6,4.19897925]
[1729754575454,5.97401033,2553.0,2552.6,4.19897925]
[1729754575821,5.97401033,2553.0,2552.6,0.28140925]
[1729754576250,3.91713,2552.9,2552.6,0.28140925]
[1729754576452,5.20564033,2552.9,2552.6,0.28140925]
[1729754576659,3.91713,2552.9,2552.6,0.28140925]
[1729754576957,5.20564033,2552.9,2552.6,0.28140925]
[1729754577667,5.97398033,2553.0,2552.6,0.78429517]
[1729754578161,3.91713,2552.9,2552.6,0.78429517]
[1729754579030,5.20564033,2552.9,2552.6,0.78429517]
[1729754580119,1.28851033,2552.8,2552.6,0.28140925]
[1729754580324,5.20593033,2552.7,2552.6,0.28140925]
[1729754580623,3.91767,2552.6,2552.3,0.8151]
[1729754580823,3.91767,2552.6,2552.1,3.91828]
[1729754580824,5.20618033,2552.6,2552.1,0.8151]
[1729754581053,3.91788,2552.4,2552.1,0.8151]
[1729754581255,3.91788,2552.4,2552.1,1.71731403]
[1729754583534,5.20639033,2552.4,2551.9,3.91863]
[1729754583860,5.20639033,2552.4,2551.8,3.91874]
[1729754583861,5.20669033,2552.2,2551.8,3.91874]
[1729754584069,5.20677033,2552.2,2551.7,4.73402]
[1729754584226,5.20677033,2552.2,2551.7,4.73396]
[1729754584423,5.20677033,2552.2,2551.7,5.72811903]
[1729754584628,3.91836,2552.1,2551.7,5.72811903]
[1729754585227,5.20671033,2552.2,2551.7,5.72811903]
[1729754585437,3.9182,2552.2,2551.7,10.93545936]
[1729754585657,5.98646033,2552.3,2551.8,5.20720033]
[1729754585830,5.98646033,2552.3,2551.9,0.9761363]
[1729754586034,5.98646033,2552.3,2551.8,3.91869]
[1729754586232,4.69795,2552.3,2551.8,5.20720033]
[1729754587187,1.28851033,2552.2,2551.8,3.91869]
[1729754587768,1.28851033,2552.2,2551.9,0.28128266]
[1729754587989,5.98644033,2552.3,2551.9,4.19986266]
[1729754588748,3.91791,2552.4,2551.9,5.22207896]
[1729754588951,1.28851033,2552.5,2552.1,3.91827]
[1729754589358,3.91758,2552.6,2552.1,3.91827]
[1729754589359,5.20609033,2552.6,2552.2,0.28116026]
[1729754589640,1.28851033,2552.5,2552.2,0.28116026]
[1729754590876,5.20623033,2552.5,2552.2,0.28116026]
[1729754591076,1.28851033,2552.4,2552.2,0.28116026]
[1729754591241,1.28851033,2552.4,2552.1,3.91827]
[1729754591442,1.28851033,2552.4,2552.3,0.28111947]
[1729754591978,1.28851033,2552.4,2552.1,3.91827]
[1729754592139,5.20623033,2552.5,2552.3,0.28111947]
[1729754592339,5.20623033,2552.5,2552.2,0.28116026]
[1729754592542,5.20623033,2552.5,2552.4,0.28107868]
[1729754592737,5.20623033,2552.5,2552.3,0.28111947]
[1729754592936,5.20623033,2552.5,2552.1,4.88569063]
[1729754593172,5.20623033,2552.5,2552.2,0.28116026]
[1729754594283,1.28851033,2552.4,2552.2,0.28116026]
[1729754594643,5.20641033,2552.4,2552.0,4.73356]
[1729754594844,5.20641033,2552.4,2552.3,0.28111947]
[1729754595045,5.20641033,2552.4,2552.0,4.73356]
[1729754595347,3.9179,2552.4,2552.0,4.73356]
[1729754595533,3.9179,2552.4,2552.1,0.28120106]
[1729754595940,5.20641033,2552.4,2552.1,0.28120106]
[1729754596978,3.9179,2552.4,2552.1,0.28120106]
[1729754597153,3.9179,2552.4,2552.1,0.78267717]
[1729754599196,5.20641033,2552.4,2552.1,0.78267717]
[1729754599360,6.02501033,2552.4,2552.1,0.28120106]
[1729754600073,3.91818,2552.2,2552.1,0.28120106]
[1729754600377,3.91818,2552.2,2551.8,4.7091]
[1729754600690,3.91818,2552.2,2552.1,0.28137872]
[1729754600890,3.91818,2552.2,2551.8,4.7091]
[1729754601092,3.91818,2552.2,2552.1,0.28137872]
[1729754601254,3.91818,2552.2,2551.8,4.7091]
[1729754601456,3.91818,2552.2,2552.1,0.28174112]
[1729754601677,3.91809,2552.3,2551.8,4.7091]
[1729754601863,3.91809,2552.3,2552.1,0.28174112]
[1729754602070,3.91809,2552.3,2551.8,8.62778]
[1729754602339,3.91809,2552.3,2552.2,0.28170032]
[1729754602796,3.91809,2552.3,2551.8,8.62778]
[1729754602964,6.02501033,2552.4,2552.2,0.28170032]
[1729754603162,6.02501033,2552.4,2551.9,3.91854]
[1729754603362,6.02501033,2552.4,2552.3,0.28165953]
[1729754603563,3.91803,2552.3,2551.9,3.91854]
[1729754603766,5.20654033,2552.3,2552.0,0.59974503]
[1729754604104,5.20654033,2552.3,2551.9,3.91854]
[1729754604105,3.91803,2552.3,2551.9,3.91854]
[1729754606775,5.20654033,2552.3,2551.8,4.70917]
[1729754606971,3.91803,2552.3,2551.8,4.70917]
[1729754607174,3.91803,2552.3,2551.9,3.91862]
[1729754607871,5.20654033,2552.3,2551.9,3.91862]
[1729754610075,3.91803,2552.3,2551.9,7.8372]
[1729754610276,6.02502033,2552.4,2552.0,3.91842]
[1729754611083,9.94304033,2552.4,2551.9,0.99161103]
[1729754611283,9.94304033,2552.4,2551.9,4.91022103]
[1729754611882,3.91805,2552.3,2551.9,4.91022103]
[1729754617800,3.91805,2552.3,2552.0,0.28188851]
[1729754619124,5.20685033,2552.1,2552.0,0.28188851]
[1729754619416,5.97985033,2552.1,2551.6,3.91897]
[1729754620029,4.69134,2552.1,2551.6,3.91897]
[1729754620324,5.97985033,2552.1,2551.6,3.91897]
[1729754620490,5.97985033,2552.1,2551.7,3.91894]
[1729754620914,5.20701033,2552.0,2551.6,3.91908]
[1729754621334,3.9185,2552.0,2551.6,3.91908]
[1729754621835,3.9185,2552.0,2551.6,4.7582077]
[1729754623347,5.20701033,2552.0,2551.6,4.7582077]
[1729754623527,3.9185,2552.0,2551.6,4.7582077]
[1729754628245,1.28851033,2551.8,2551.0,13.0]
[1729754628455,0.61332236,2552.5,2551.0,13.0]
[1729754628456,2.06151033,2551.6,2551.2,4.70538]
[1729754628663,2.06151033,2551.6,2551.0,14.70574]
[1729754628848,4.69225,2551.6,2551.1,3.9198]
[1729754629047,4.69225,2551.6,2551.1,7.19971536]
[1729754629560,0.773,2551.6,2551.2,5.20814033]
[1729754629765,4.69211,2551.6,2551.1,7.19977536]
[1729754629968,5.98062033,2551.6,2551.1,3.91986]
[1729754632868,5.98062033,2551.6,2551.2,0.28233586]
[1729754633630,0.773,2551.6,2551.2,0.28233586]
[1729754633830,0.773,2551.6,2551.2,5.82968648]
[1729754634024,4.69218,2551.6,2551.2,1.90998648]
[1729754634560,4.69218,2551.6,2551.2,0.28233586]
[1729754634739,5.98069033,2551.6,2551.2,0.28233586]
[1729754635066,4.69218,2551.6,2551.2,0.28233586]
[1729754635965,3.91928,2551.5,2551.2,0.28233586]
[1729754636173,3.91928,2551.5,2551.0,15.99431033]
[1729754636376,3.91928,2551.5,2551.0,16.69723703]
[1729754636678,3.91928,2551.5,2551.1,0.28281749]
[1729754637184,0.7636,2551.4,2551.1,0.28281749]
[1729754640277,4.68308,2551.4,2551.1,0.28281749]
[1729754641054,0.7636,2551.4,2551.1,0.28281749]
[1729754642247,4.68301,2551.4,2551.1,0.28281749]
[1729754642441,0.7636,2551.4,2551.1,0.28281749]
[1729754644691,0.7636,2551.4,2551.1,2.7284606]
[1729754644984,4.68277,2551.6,2551.1,7.4091006]
[1729754645290,4.68277,2551.6,2551.1,5.35979027]
[1729754645462,0.7636,2551.5,2551.1,5.35979027]
[1729754645787,0.7636,2551.5,2551.1,1.43995027]
[1729754646151,4.68287,2551.5,2551.1,1.43995027]
[1729754646784,0.7636,2551.5,2551.1,5.35980027]
[1729754646944,0.7636,2551.5,2551.1,6.6483106]
[1729754647143,0.7636,2551.5,2551.1,7.4091106]
[1729754647476,0.7636,2551.5,2551.1,2.20075027]
[1729754647656,0.7636,2551.5,2551.1,6.12062027]
[1729754647987,0.7636,2551.7,2551.2,11.26079339]
[1729754648190,0.7636,2551.7,2551.3,0.28337576]
[1729754648350,0.7636,2551.7,2551.3,3.91956]
[1729754648551,0.7636,2551.7,2551.4,0.28333494]
[1729754651410,4.68256,2551.7,2551.4,0.28333494]
[1729754651770,4.68256,2551.7,2551.2,7.41948824]
[1729754652093,4.68256,2551.7,2551.3,1.60910186]
[1729754652482,0.7636,2551.7,2551.3,2.89761219]
[1729754652689,0.7636,2551.7,2551.3,5.52856186]
[1729754653206,4.68255,2551.7,2551.3,1.60910186]
[1729754653418,4.68255,2551.7,2551.3,0.28337576]
[1729754653785,4.68255,2551.7,2551.2,5.20819033]
[1729754653985,4.68255,2551.7,2551.3,0.28337576]
[1729754654211,4.68255,2551.7,2551.3,3.91955]
[1729754654509,0.7636,2551.7,2551.4,0.28333494]
[1729754654807,5.97107033,2551.7,2551.4,0.28333494]
[1729754654993,4.68256,2551.7,2551.4,0.28333494]
[1729754655199,4.68256,2551.7,2551.2,5.28652516]
[1729754655405,0.7833,2552.1,2551.6,1.28851033]
[1729754655715,0.7833,2552.1,2551.7,6.01996033]
[1729754655915,0.7833,2552.1,2551.7,6.30291678]
[1729754656213,0.7833,2552.1,2551.7,5.01440645]
[1729754656706,0.7833,2552.1,2551.7,6.30291678]
[1729754656909,0.7833,2552.1,2551.8,0.63812893]
[1729754657275,0.7833,2552.1,2551.9,0.28287483]
[1729754658728,3.91825,2552.2,2551.9,0.28287483]
[1729754659017,4.70143,2552.3,2551.9,1.57138516]
[1729754659173,4.70143,2552.3,2551.9,0.28287483]
[1729754659509,4.70143,2552.3,2551.9,1.36883724]
[1729754659985,3.9182,2552.2,2551.9,1.36883724]
[1729754663506,0.7833,2552.3,2551.9,1.36883724]
[1729754666123,3.91779,2552.5,2552.1,0.28258703]
[1729754668221,5.20630033,2552.5,2552.1,0.28258703]
[1729754668421,1.28851033,2552.5,2552.1,0.28258703]
[1729754668623,3.91795,2552.4,2552.1,1.02141301]
[1729754676109,5.98947033,2552.6,2552.1,1.02141301]
[1729754676318,3.91778,2552.5,2552.1,0.28258703]
[1729754677834,3.91778,2552.5,2552.1,5.48942736]
[1729754678016,3.91778,2552.5,2552.1,4.20091703]
[1729754678599,3.91749,2552.7,2552.3,2.10111033]
[1729754678946,3.91757,2552.7,2552.4,0.4999495]
[1729754679304,5.98911033,2552.8,2552.4,0.4999495]
[1729754679517,3.91754,2552.7,2552.4,0.4999495]
[1729754679738,3.91758,2552.6,2552.4,0.4999495]
[1729754680007,3.91772,2552.5,2552.4,0.28200255]
[1729754680522,3.91772,2552.5,2552.1,4.66832]
[1729754680714,3.91772,2552.5,2552.4,0.28192439]
[1729754680916,3.91772,2552.5,2552.1,4.66832]
[1729754681117,3.9176,2552.6,2552.4,0.28192439]
[1729754681330,3.9176,2552.6,2552.2,3.91817]
[1729754681919,5.20611033,2552.6,2552.3,0.28196518]
[1729754682115,3.91788,2552.4,2552.3,0.28196518]
[1729754682345,4.70718,2552.5,2552.1,3.99660309]
[1729754682651,4.70718,2552.5,2552.2,0.28200597]
[1729754684835,0.7894,2552.5,2552.2,4.20018597]
[1729754685027,3.0,2553.2,2552.2,4.20018597]
[1729754685028,4.70683,2552.7,2552.3,3.91801]
[1729754685661,4.70683,2552.7,2552.4,0.28192439]
[1729754685825,0.7894,2552.7,2552.4,0.28192439]
[1729754686026,0.7894,2552.7,2552.4,4.83137568]
[1729754689971,0.7894,2552.9,2552.4,4.83132568]
[1729754690272,0.7894,2552.9,2552.5,4.66763]
[1729754690768,4.70626,2553.1,2552.6,4.19927885]
[1729754691067,3.91697,2553.0,2552.6,4.19927885]
[1729754691270,4.70627,2553.1,2552.6,5.2780089]
[1729754691562,5.99478033,2553.1,2552.6,5.2780089]
[1729754693272,5.99478033,2553.1,2552.6,1.3605089]
[1729754696071,5.20548033,2553.0,2552.6,1.3605089]
[1729754698386,1.28851033,2552.9,2552.6,1.3605089]
[1729754699763,5.20564033,2552.9,2552.6,1.3605089]
[1729754699965,0.7894,2553.1,2552.6,1.3605089]
[1729754699966,5.20593033,2552.7,2552.6,0.28177885]
[1729754700312,5.20593033,2552.7,2552.3,0.7503]
[1729754700313,3.91758,2552.6,2552.3,0.7503]
[1729754700459,5.20609033,2552.6,2552.1,4.66861]
[1729754700665,1.28851033,2552.6,2552.1,4.66861]
[1729754700878,1.28851033,2552.6,2552.2,0.59571203]
[1729754701203,9.12349033,2552.7,2552.2,0.59571203]
[1729754702261,1.28851033,2552.6,2552.2,0.59571203]
[1729754703670,1.28851033,2552.6,2552.2,4.51388203]
[1729754703872,5.20599033,2552.7,2552.2,4.51388203]
[1729754704907,5.20599033,2552.7,2552.3,0.68850052]
[1729754705404,3.91748,2552.7,2552.3,4.60653052]
[1729754705565,5.99250033,2552.8,2552.4,3.91786]
[1729754705771,5.99250033,2552.8,2552.4,4.66816]
[1729754707537,1.28851033,2552.7,2552.4,4.66816]
[1729754707803,5.99250033,2552.8,2552.4,1.74518754]
[1729754707971,5.99250033,2552.8,2552.5,0.28125996]
[1729754710709,9.90988033,2552.8,2552.5,0.28125996]
[1729754711213,5.20593033,2552.7,2552.5,0.28125996]
[1729754714430,3.91742,2552.7,2552.5,0.28125996]
[1729754715430,5.20593033,2552.7,2552.5,0.28125996]
[1729754717139,1.28851033,2552.6,2552.5,0.28125996]
[1729754717339,5.20608033,2552.6,2552.5,0.28125996]
[1729754717637,5.20608033,2552.6,2552.2,4.69426]
[1729754717795,5.20640033,2552.4,2552.2,1.637363]
[1729754718139,1.28851033,2552.4,2552.3,0.28145524]
[1729754718340,5.98841033,2552.5,2552.3,0.28145524]
[1729754718501,5.98841033,2552.5,2552.0,4.69447]
[1729754718833,5.98841033,2552.5,2552.4,0.28141445]
[1729754719036,3.91788,2552.4,2552.0,4.69447]
[1729754719205,5.20639033,2552.4,2552.0,5.68463503]
[1729754719894,1.28851033,2552.4,2552.0,5.68463503]
[1729754720310,5.20645033,2552.4,2552.0,5.68463503]
[1729754723038,1.28851033,2552.3,2552.1,0.28116011]
[1729754724025,5.20645033,2552.4,2552.1,0.28116011]
[1729754724750,1.28851033,2552.3,2552.1,0.28116011]
[1729754725046,1.28851033,2552.3,2551.9,3.9186]
[1729754725555,1.28851033,2552.3,2552.0,0.28129327]
[1729754726234,1.28851033,2552.3,2552.0,4.19976327]
[1729754726453,1.28851033,2552.3,2552.0,0.28129327]
[1729754726959,3.91794,2552.4,2552.0,0.28129327]
[1729754726960,2.07811033,2552.1,2552.0,0.28129327]
[1729754727159,2.07811033,2552.1,2551.7,3.91892]
[1729754727460,2.07811033,2552.1,2551.6,0.8243]
[1729754727769,5.20701033,2552.0,2551.5,7.83833]
[1729754728056,5.20701033,2552.0,2551.6,3.91908]
[1729754728260,1.28851033,2552.0,2551.6,3.91908]
[1729754728561,1.28851033,2552.0,2551.6,4.91418503]
[1729754729357,5.99654033,2552.1,2551.6,4.91418503]
[1729754729660,1.28851033,2552.0,2551.6,8.83321503]
[1729754731636,1.28851033,2552.0,2551.6,4.91413503]
[1729754732064,4.70803,2552.1,2551.6,4.91413503]
[1729754732065,5.99654033,2552.1,2551.6,4.91413503]
[1729754732575,5.99654033,2552.1,2551.6,8.83316503]
[1729754732861,5.99654033,2552.1,2551.6,4.91413503]
[1729754733065,5.99654033,2552.1,2551.6,8.83316503]
[1729754733762,5.99654033,2552.1,2551.7,0.46808007]
[1729754735475,0.7896,2552.1,2551.7,4.38696007]
[1729754735684,0.7896,2552.1,2551.8,3.91879]
[1729754735890,0.7896,2552.1,2551.7,4.38696007]
[1729754736243,0.7896,2552.1,2551.7,8.30579007]
[1729754736581,0.7896,2552.1,2551.8,1.05894054]
[1729754737142,2.07811033,2552.1,2551.8,1.05894054]
[1729754737384,2.07811033,2552.1,2551.7,4.38691007]
[1729754737743,0.7896,2552.1,2551.8,0.27197213]
[1729754738082,2.07811033,2552.1,2551.7,4.38691007]
[1729754738244,0.7896,2552.1,2551.7,4.38691007]
[1729754738444,0.7896,2552.1,2551.9,0.27193132]
[1729754738889,0.7896,2552.1,2552.0,0.27189052]
[1729754739180,2.07811033,2552.1,2551.7,4.38691007]
[1729754739390,2.07811033,2552.1,2552.0,0.27209558]
[1729754739546,5.99646033,2552.1,2551.6,3.9191]
[1729754739746,3.91851,2552.0,2551.5,7.83828]
[1729754739987,3.91851,2552.0,2551.5,3.91912]
[1729754740184,1.28851033,2551.9,2551.4,0.8243]
[1729754740477,0.8187,2551.8,2551.5,0.474374]
[1729754745883,4.73708,2552.1,2551.6,4.71712]
[1729754746052,0.8187,2552.1,2551.7,3.91895]
[1729754746249,2.10721033,2552.1,2551.7,3.91895]
[1729754746769,2.10721033,2552.1,2551.6,4.71717]
[1729754746971,1.28851033,2552.0,2551.6,1.03992743]
[1729754747284,0.8187,2551.8,2551.5,4.393614]
[1729754748152,0.8187,2551.8,2551.5,4.393564]
[1729754748789,0.8187,2551.8,2551.5,8.312754]
[1729754749016,1.28851033,2551.7,2551.4,3.91935]
[1729754749188,1.28851033,2551.6,2551.2,3.91959]
[1729754749384,5.20748033,2551.7,2551.2,3.91959]
[1729754751304,0.8187,2551.5,2551.2,3.91959]
[1729754751615,0.8187,2551.5,2551.2,5.91218803]
[1729754752714,0.8187,2551.5,2551.3,3.91947]
[1729754753009,0.8187,2551.5,2551.3,4.18289295]
[1729754753303,5.20738033,2551.8,2551.3,4.18289295]
[1729754753510,0.8187,2551.7,2551.3,4.18289295]
[1729754756108,0.8187,2551.7,2551.4,3.9194]
[1729754756274,0.8187,2551.7,2551.4,4.18278213]
[1729754759299,0.8187,2551.7,2551.4,0.26338213]
[1729754760513,4.73767,2551.7,2551.4,0.26338213]
[1729754760722,2.10721033,2551.7,2551.4,0.26338213]
[1729754760878,0.8187,2551.7,2551.4,0.26338213]
[1729754762717,0.8187,2551.7,2551.3,3.91955]
[1729754763115,0.8187,2551.7,2551.5,0.26370022]
[1729754763415,6.02616033,2551.7,2551.4,0.26374104]
[1729754763583,6.02616033,2551.7,2551.6,0.2636594]
[1729754763784,6.02616033,2551.7,2551.2,5.91228803]
[1729754763982,0.793,2551.2,2551.0,10.0]
[1729754764283,1.28851033,2551.1,2551.0,10.0]
[1729754764477,6.00131033,2551.2,2551.0,10.0]
[1729754765122,5.20838033,2551.1,2551.0,10.0]
[1729754765615,6.00138033,2551.1,2551.0,10.0]
[1729754765929,7.1223494,2551.1,2551.0,10.0]
[1729754767923,10.1223494,2551.1,2551.0,10.0]
[1729754769825,8.83383907,2551.1,2551.0,10.0]
[1729754769990,10.1323494,2551.1,2551.0,10.0]
[1729754773105,10.6823494,2551.1,2551.0,4.11994]